[Event "Titled Tuesday Blitz June 8 2021"]
[White "Yilmaz, Mustafa"]
[Black "Narayanan.S.L"]
[WhiteFideId "6302718"]
[BlackFideId "5058422"]
[WhiteElo "2518"]
[BlackElo "2617"]
[Result "0-1"]
[Round "09"]
[TimeControl "180+1"]
[Date "2021.06.08"]
[WhiteClock "0:00:02"]
[BlackClock "0:00:23"]

1. d4 {[%clk 0:03:00]}  e6 {[%clk 0:02:59]} 2. c4 {[%clk 0:03:00]}  f5 {[%clk 0:02:59]} 3. a3 {[%clk 0:02:55]}  Nf6 {[%clk 0:02:59]} 4. Nc3 {[%clk 0:02:56]}  b6 {[%clk 0:02:59]} 5. Bf4 {[%clk 0:02:56]}  Bb7 {[%clk 0:02:58]} 6. e3 {[%clk 0:02:56]}  g6 {[%clk 0:02:59]} 7. h3 {[%clk 0:02:55]}  Bg7 {[%clk 0:02:59]} 8. Nf3 {[%clk 0:02:55]}  O-O {[%clk 0:02:59]} 9. Be2 {[%clk 0:02:53]}  d6 {[%clk 0:02:59]} 10. O-O {[%clk 0:02:45]}  Nbd7 {[%clk 0:03:00]} 11. b4 {[%clk 0:02:37]}  h6 {[%clk 0:02:56]} 12. Bh2 {[%clk 0:02:36]}  g5 {[%clk 0:02:56]} 13. c5 {[%clk 0:02:27]}  bxc5 {[%clk 0:02:53]} 14. bxc5 {[%clk 0:02:26]}  dxc5 {[%clk 0:02:54]} 15. Qb3 {[%clk 0:02:23]}  Bd5 {[%clk 0:02:54]} 16. Nxd5 {[%clk 0:02:22]}  Nxd5 {[%clk 0:02:53]} 17. Rac1 {[%clk 0:02:17]}  cxd4 {[%clk 0:02:20]} 18. Nxd4 {[%clk 0:02:13]}  Bxd4 {[%clk 0:02:21]} 19. exd4 {[%clk 0:02:14]}  Qf6 {[%clk 0:02:21]} 20. Bb5 {[%clk 0:02:02]}  N7b6 {[%clk 0:02:20]} 21. Be5 {[%clk 0:01:59]}  Qe7 {[%clk 0:02:19]} 22. Rfe1 {[%clk 0:01:56]}  Rf7 {[%clk 0:02:05]} 23. Qf3 {[%clk 0:01:46]}  Kh7 {[%clk 0:02:02]} 24. Rc6 {[%clk 0:01:44]}  Rd8 {[%clk 0:01:46]} 25. Bd3 {[%clk 0:01:38]}  Qd7 {[%clk 0:01:21]} 26. Qh5 {[%clk 0:01:37]}  Rdf8 {[%clk 0:01:10]} 27. Rc5 {[%clk 0:00:57]}  Nc8 {[%clk 0:01:05]} 28. Bb5 {[%clk 0:00:52]}  Qe7 {[%clk 0:01:05]} 29. Bc4 {[%clk 0:00:38]}  Ncb6 {[%clk 0:01:03]} 30. Bd3 {[%clk 0:00:38]}  Nd7 {[%clk 0:01:02]} 31. Rc6 {[%clk 0:00:37]}  Nxe5 {[%clk 0:01:02]} 32. Rxe5 {[%clk 0:00:35]}  Nf4 {[%clk 0:01:02]} 33. Qf3 {[%clk 0:00:28]}  Qd7 {[%clk 0:00:59]} 34. Rc4 {[%clk 0:00:14]}  Rb8 {[%clk 0:00:44]} 35. g3 {[%clk 0:00:15]}  Nxd3 {[%clk 0:00:44]} 36. Qxd3 {[%clk 0:00:15]}  Rb6 {[%clk 0:00:45]} 37. Qc2 {[%clk 0:00:14]}  Rd6 {[%clk 0:00:43]} 38. Rec5 {[%clk 0:00:12]}  Rxd4 {[%clk 0:00:32]} 39. Rxc7 {[%clk 0:00:12]}  Rd1+ {[%clk 0:00:21]} 40. Kh2 {[%clk 0:00:10]}  Qd5 {[%clk 0:00:22]} 41. Rxf7+ {[%clk 0:00:09]}  Kg6 {[%clk 0:00:23]} 42. f3 {[%clk 0:00:02]}  Rd2+ {[%clk 0:00:23]} 0-1


[Site "https://www.chess.com"]

[Event "Titled Tuesday Blitz June 8 2021"]
[White "Zierk, Steven"]
[Black "Wagner, Dennis"]
[WhiteFideId "2034255"]
[BlackFideId "24650684"]
[WhiteElo "2502"]
[BlackElo "2355"]
[Result "0-1"]
[Round "09"]
[TimeControl "180+1"]
[Date "2021.06.08"]
[WhiteClock "0:00:57"]
[BlackClock "0:00:48"]

1. e4 {[%clk 0:03:00]}  c5 {[%clk 0:02:58]} 2. Nf3 {[%clk 0:03:00]}  d6 {[%clk 0:02:57]} 3. d4 {[%clk 0:02:58]}  cxd4 {[%clk 0:02:57]} 4. Nxd4 {[%clk 0:02:59]}  Nf6 {[%clk 0:02:58]} 5. f3 {[%clk 0:02:59]}  e6 {[%clk 0:02:54]} 6. c4 {[%clk 0:02:59]}  Be7 {[%clk 0:02:54]} 7. Nc3 {[%clk 0:03:00]}  O-O {[%clk 0:02:55]} 8. Be2 {[%clk 0:02:59]}  Nc6 {[%clk 0:02:54]} 9. O-O {[%clk 0:02:58]}  Re8 {[%clk 0:02:51]} 10. Nc2 {[%clk 0:02:52]}  d5 {[%clk 0:02:47]} 11. cxd5 {[%clk 0:02:46]}  exd5 {[%clk 0:02:48]} 12. Nxd5 {[%clk 0:02:43]}  Nxd5 {[%clk 0:02:46]} 13. exd5 {[%clk 0:02:44]}  Bc5+ {[%clk 0:02:35]} 14. Kh1 {[%clk 0:02:43]}  Ne7 {[%clk 0:02:35]} 15. Bc4 {[%clk 0:02:37]}  Nf5 {[%clk 0:02:34]} 16. Bf4 {[%clk 0:02:29]}  Qh4 {[%clk 0:02:25]} 17. g3 {[%clk 0:02:28]}  Nxg3+ {[%clk 0:02:19]} 18. Bxg3 {[%clk 0:02:27]}  Qxc4 {[%clk 0:02:20]} 19. Rc1 {[%clk 0:02:18]}  Bh3 {[%clk 0:02:19]} 20. Re1 {[%clk 0:01:57]}  Rxe1+ {[%clk 0:02:19]} 21. Qxe1 {[%clk 0:01:58]}  Qxd5 {[%clk 0:02:19]} 22. Qe2 {[%clk 0:01:51]}  h5 {[%clk 0:02:00]} 23. b3 {[%clk 0:01:41]}  Rd8 {[%clk 0:01:46]} 24. Ne3 {[%clk 0:01:23]}  Qg5 {[%clk 0:01:00]} 25. Bf2 {[%clk 0:01:09]}  Bg2+ {[%clk 0:00:57]} 26. Nxg2 {[%clk 0:01:06]}  Qxc1+ {[%clk 0:00:57]} 27. Be1 {[%clk 0:01:07]}  Bb4 {[%clk 0:00:52]} 28. h4 {[%clk 0:00:58]}  Bxe1 {[%clk 0:00:50]} 29. Nxe1 {[%clk 0:00:59]}  Rd1 {[%clk 0:00:48]} 30. Qe8+ {[%clk 0:00:57]}  Kh7 {[%clk 0:00:48]} 0-1


[Site "https://www.chess.com"]

[Event "Titled Tuesday Blitz June 8 2021"]
[White "Bendayan Claros, Aaron"]
[Black "Hess, Robert"]
[WhiteFideId "3803392"]
[BlackFideId "2022036"]
[WhiteElo "2166"]
[BlackElo "2557"]
[Result "0-1"]
[Round "10"]
[TimeControl "180+1"]
[Date "2021.06.08"]
[WhiteClock "0:00:03"]
[BlackClock "0:01:22"]

1. d4 {[%clk 0:03:00]}  g6 {[%clk 0:02:55]} 2. c4 {[%clk 0:02:50]}  Bg7 {[%clk 0:02:54]} 3. Nc3 {[%clk 0:02:50]}  c5 {[%clk 0:02:54]} 4. d5 {[%clk 0:02:50]}  Bxc3+ {[%clk 0:02:55]} 5. bxc3 {[%clk 0:02:50]}  f5 {[%clk 0:02:56]} 6. Nf3 {[%clk 0:02:48]}  Nf6 {[%clk 0:02:56]} 7. Bh6 {[%clk 0:02:47]}  Qa5 {[%clk 0:02:56]} 8. Qb3 {[%clk 0:02:45]}  d6 {[%clk 0:02:52]} 9. e3 {[%clk 0:02:36]}  Nbd7 {[%clk 0:02:48]} 10. h3 {[%clk 0:02:35]}  Nb6 {[%clk 0:02:45]} 11. Be2 {[%clk 0:02:01]}  Bd7 {[%clk 0:02:40]} 12. Ng5 {[%clk 0:01:42]}  Ba4 {[%clk 0:02:11]} 13. Qb2 {[%clk 0:01:29]}  Kd7 {[%clk 0:01:53]} 14. O-O {[%clk 0:00:49]}  Rhb8 {[%clk 0:01:43]} 15. e4 {[%clk 0:00:24]}  Nxe4 {[%clk 0:01:31]} 16. Nxe4 {[%clk 0:00:24]}  fxe4 {[%clk 0:01:32]} 17. Bg4+ {[%clk 0:00:19]}  Kc7 {[%clk 0:01:28]} 18. Qe2 {[%clk 0:00:20]}  Bd7 {[%clk 0:01:20]} 19. Qxe4 {[%clk 0:00:18]}  Bxg4 {[%clk 0:01:21]} 20. hxg4 {[%clk 0:00:18]}  Re8 {[%clk 0:01:20]} 21. Bd2 {[%clk 0:00:15]}  Qa4 {[%clk 0:01:20]} 22. Rfd1 {[%clk 0:00:08]}  Qxc4 {[%clk 0:01:20]} 23. Qxc4 {[%clk 0:00:07]}  Nxc4 {[%clk 0:01:21]} 24. Be1 {[%clk 0:00:08]}  e6 {[%clk 0:01:20]} 25. dxe6 {[%clk 0:00:07]}  Rxe6 {[%clk 0:01:21]} 26. f3 {[%clk 0:00:07]}  Rae8 {[%clk 0:01:21]} 27. Bg3 {[%clk 0:00:07]}  Kc6 {[%clk 0:01:22]} 28. Rd3 {[%clk 0:00:05]}  d5 {[%clk 0:01:21]} 29. Rad1 {[%clk 0:00:05]}  Nb2 {[%clk 0:01:21]} 30. Rxd5 {[%clk 0:00:05]}  Nxd1 {[%clk 0:01:22]} 31. Rxd1 {[%clk 0:00:06]}  R8e7 {[%clk 0:01:21]} 32. a4 {[%clk 0:00:03]}  Rd7 {[%clk 0:01:21]} 33. Rb1 {[%clk 0:00:03]}  Rd2 {[%clk 0:01:20]} 34. Rb3 {[%clk 0:00:01]}  Ree2 {[%clk 0:01:20]} 35. Bf4 {[%clk 0:00:01]}  Rxg2+ {[%clk 0:01:20]} 36. Kf1 {[%clk 0:00:02]}  Rdf2+ {[%clk 0:01:20]} 37. Ke1 {[%clk 0:00:02]}  Rxf3 {[%clk 0:01:21]} 38. Be5 {[%clk 0:00:03]}  Re3+ {[%clk 0:01:21]} 39. Kf1 {[%clk 0:00:03]}  Ra2 {[%clk 0:01:21]} 40. Bf6 {[%clk 0:00:03]}  Rf3+ {[%clk 0:01:21]} 41. Kg1 {[%clk 0:00:03]}  Rxf6 {[%clk 0:01:22]} 0-1


[Site "https://www.chess.com"]

[Event "Titled Tuesday Blitz June 8 2021"]
[White "Cunjalo, Faris"]
[Black "Esipenko, Andrey"]
[WhiteFideId "14410710"]
[BlackFideId "24175439"]
[WhiteElo "2234"]
[BlackElo "2595"]
[Result "1-0"]
[Round "10"]
[TimeControl "180+1"]
[Date "2021.06.08"]
[WhiteClock "0:00:03"]
[BlackClock "0:00:01"]

1. c4 {[%clk 0:03:00]}  e5 {[%clk 0:02:58]} 2. g3 {[%clk 0:02:59]}  Nf6 {[%clk 0:02:56]} 3. Bg2 {[%clk 0:02:58]}  Bc5 {[%clk 0:02:56]} 4. Nc3 {[%clk 0:02:56]}  c6 {[%clk 0:02:55]} 5. e3 {[%clk 0:02:26]}  d5 {[%clk 0:02:48]} 6. cxd5 {[%clk 0:02:27]}  cxd5 {[%clk 0:02:48]} 7. d4 {[%clk 0:02:27]}  exd4 {[%clk 0:02:45]} 8. exd4 {[%clk 0:02:28]}  Bb6 {[%clk 0:02:43]} 9. Nge2 {[%clk 0:02:26]}  Nc6 {[%clk 0:02:43]} 10. Bg5 {[%clk 0:02:23]}  Be6 {[%clk 0:02:42]} 11. O-O {[%clk 0:02:21]}  O-O {[%clk 0:02:40]} 12. Qd2 {[%clk 0:01:48]}  h6 {[%clk 0:02:32]} 13. Bxf6 {[%clk 0:01:31]}  Qxf6 {[%clk 0:02:31]} 14. Rad1 {[%clk 0:01:28]}  Rad8 {[%clk 0:02:29]} 15. a3 {[%clk 0:01:08]}  Bc7 {[%clk 0:02:22]} 16. Na4 {[%clk 0:01:03]}  Bg4 {[%clk 0:02:20]} 17. f3 {[%clk 0:00:59]}  Bc8 {[%clk 0:02:17]} 18. Rfe1 {[%clk 0:00:53]}  Rfe8 {[%clk 0:02:05]} 19. b4 {[%clk 0:00:53]}  a6 {[%clk 0:02:03]} 20. Nc5 {[%clk 0:00:53]}  Re7 {[%clk 0:01:54]} 21. Kf2 {[%clk 0:00:36]}  Rde8 {[%clk 0:01:49]} 22. Nc3 {[%clk 0:00:36]}  Rxe1 {[%clk 0:01:48]} 23. Rxe1 {[%clk 0:00:36]}  Rxe1 {[%clk 0:01:48]} 24. Kxe1 {[%clk 0:00:37]}  Nxd4 {[%clk 0:01:42]} 25. Nxd5 {[%clk 0:00:37]}  Qe5+ {[%clk 0:01:35]} 26. Ne3 {[%clk 0:00:38]}  b6 {[%clk 0:01:11]} 27. Nd3 {[%clk 0:00:31]}  Qf6 {[%clk 0:01:10]} 28. f4 {[%clk 0:00:30]}  Bd8 {[%clk 0:00:58]} 29. Nd5 {[%clk 0:00:29]}  Qe6+ {[%clk 0:00:53]} 30. Kf2 {[%clk 0:00:29]}  Nb5 {[%clk 0:00:37]} 31. a4 {[%clk 0:00:19]}  Nd6 {[%clk 0:00:37]} 32. Qe3 {[%clk 0:00:19]}  Qd7 {[%clk 0:00:35]} 33. Nxb6 {[%clk 0:00:18]}  Qc7 {[%clk 0:00:26]} 34. Nxc8 {[%clk 0:00:17]}  Qxc8 {[%clk 0:00:27]} 35. Nc5 {[%clk 0:00:11]}  a5 {[%clk 0:00:27]} 36. bxa5 {[%clk 0:00:09]}  Bxa5 {[%clk 0:00:27]} 37. Nd3 {[%clk 0:00:09]}  Qc2+ {[%clk 0:00:23]} 38. Qe2 {[%clk 0:00:09]}  Bb6+ {[%clk 0:00:22]} 39. Kf1 {[%clk 0:00:09]}  Qb1+ {[%clk 0:00:22]} 40. Ne1 {[%clk 0:00:09]}  Ba5 {[%clk 0:00:14]} 41. Bf3 {[%clk 0:00:05]}  g6 {[%clk 0:00:09]} 42. Kf2 {[%clk 0:00:05]}  Nf5 {[%clk 0:00:07]} 43. Nd3 {[%clk 0:00:05]}  Bb6+ {[%clk 0:00:06]} 44. Kg2 {[%clk 0:00:05]}  Nd4 {[%clk 0:00:06]} 45. Qe8+ {[%clk 0:00:03]}  Kg7 {[%clk 0:00:07]} 46. Qe5+ {[%clk 0:00:04]}  Kh7 {[%clk 0:00:07]} 47. Qf6 {[%clk 0:00:02]}  Kg8 {[%clk 0:00:03]} 48. Ne5 {[%clk 0:00:01]}  Qa2+ {[%clk 0:00:04]} 49. Kh3 {[%clk 0:00:02]}  Bc7 {[%clk 0:00:03]} 50. Be4 {[%clk 0:00:01]}  Ne2 {[%clk 0:00:02]} 51. Bxg6 {[%clk 0:00:01]}  Ng1+ {[%clk 0:00:03]} 52. Kg4 {[%clk 0:00:02]}  Qe2+ {[%clk 0:00:02]} 53. Kf5 {[%clk 0:00:03]}  Qc2+ {[%clk 0:00:01]} 54. Kg4 {[%clk 0:00:03]}  fxg6 {[%clk 0:00:01]} 55. Qe6+ {[%clk 0:00:04]}  Kh8 {[%clk 0:00:01]} 56. Qe8+ {[%clk 0:00:03]} 1-0


[Site "https://www.chess.com"]

[Event "Titled Tuesday Blitz June 8 2021"]
[White "Dang, Hoang Son"]
[Black "Visakh N R"]
[WhiteFideId "12402435"]
[BlackFideId "25012223"]
[WhiteElo "2248"]
[BlackElo "2428"]
[Result "1/2-1/2"]
[Round "10"]
[TimeControl "180+1"]
[Date "2021.06.08"]
[WhiteClock "0:00:08"]
[BlackClock "0:00:06"]

1. d4 {[%clk 0:03:00]}  Nf6 {[%clk 0:02:59]} 2. c4 {[%clk 0:03:01]}  g6 {[%clk 0:02:59]} 3. Nf3 {[%clk 0:03:02]}  Bg7 {[%clk 0:02:59]} 4. g3 {[%clk 0:03:02]}  O-O {[%clk 0:02:58]} 5. Bg2 {[%clk 0:03:03]}  c6 {[%clk 0:02:59]} 6. O-O {[%clk 0:03:01]}  d5 {[%clk 0:02:59]} 7. cxd5 {[%clk 0:03:00]}  cxd5 {[%clk 0:02:55]} 8. Bf4 {[%clk 0:02:54]}  Nc6 {[%clk 0:02:53]} 9. Ne5 {[%clk 0:02:53]}  Nh5 {[%clk 0:02:43]} 10. Nxc6 {[%clk 0:02:52]}  bxc6 {[%clk 0:02:42]} 11. Be3 {[%clk 0:02:53]}  c5 {[%clk 0:02:28]} 12. Nc3 {[%clk 0:02:51]}  e6 {[%clk 0:02:28]} 13. dxc5 {[%clk 0:01:57]}  Rb8 {[%clk 0:02:27]} 14. g4 {[%clk 0:01:58]}  d4 {[%clk 0:02:17]} 15. gxh5 {[%clk 0:01:51]}  dxe3 {[%clk 0:02:17]} 16. hxg6 {[%clk 0:01:48]}  hxg6 {[%clk 0:02:03]} 17. Qc2 {[%clk 0:01:30]}  exf2+ {[%clk 0:01:45]} 18. Kh1 {[%clk 0:01:29]}  Qh4 {[%clk 0:01:38]} 19. Qe4 {[%clk 0:01:15]}  Qxe4 {[%clk 0:01:36]} 20. Nxe4 {[%clk 0:01:16]}  Rxb2 {[%clk 0:01:32]} 21. Rxf2 {[%clk 0:01:16]}  Bb7 {[%clk 0:01:26]} 22. Rc1 {[%clk 0:01:10]}  Bd4 {[%clk 0:01:05]} 23. e3 {[%clk 0:00:49]}  Rxf2 {[%clk 0:01:00]} 24. Nxf2 {[%clk 0:00:50]}  Bxe3 {[%clk 0:00:59]} 25. Rc3 {[%clk 0:00:32]}  Bxg2+ {[%clk 0:00:48]} 26. Kxg2 {[%clk 0:00:33]}  Bxf2 {[%clk 0:00:40]} 27. Kxf2 {[%clk 0:00:32]}  Rd8 {[%clk 0:00:39]} 28. Ke3 {[%clk 0:00:29]}  Kf8 {[%clk 0:00:39]} 29. Ra3 {[%clk 0:00:23]}  Rd7 {[%clk 0:00:37]} 30. Ke4 {[%clk 0:00:15]}  Ke7 {[%clk 0:00:36]} 31. Rc3 {[%clk 0:00:10]}  f5+ {[%clk 0:00:35]} 32. Ke5 {[%clk 0:00:09]}  Rd5+ {[%clk 0:00:34]} 33. Kf4 {[%clk 0:00:09]}  Kf6 {[%clk 0:00:32]} 34. c6 {[%clk 0:00:10]}  g5+ {[%clk 0:00:31]} 35. Ke3 {[%clk 0:00:10]}  Rd8 {[%clk 0:00:31]} 36. c7 {[%clk 0:00:09]}  Rc8 {[%clk 0:00:28]} 37. Kd4 {[%clk 0:00:10]}  f4 {[%clk 0:00:19]} 38. Ke4 {[%clk 0:00:09]}  Ke7 {[%clk 0:00:19]} 39. Ke5 {[%clk 0:00:09]}  Kd7 {[%clk 0:00:19]} 40. Kf6 {[%clk 0:00:07]}  Rxc7 {[%clk 0:00:17]} 41. Rd3+ {[%clk 0:00:07]}  Kc6 {[%clk 0:00:12]} 42. Kxg5 {[%clk 0:00:08]}  e5 {[%clk 0:00:12]} 43. Kf5 {[%clk 0:00:09]}  Re7 {[%clk 0:00:12]} 44. Ke4 {[%clk 0:00:09]}  Kc5 {[%clk 0:00:08]} 45. h4 {[%clk 0:00:10]}  Rh7 {[%clk 0:00:07]} 46. Rd5+ {[%clk 0:00:08]}  Kc4 {[%clk 0:00:06]} 47. Rxe5 {[%clk 0:00:08]}  Rxh4 {[%clk 0:00:06]} 48. Re7 {[%clk 0:00:09]}  a5 {[%clk 0:00:04]} 49. Rb7 {[%clk 0:00:06]}  a4 {[%clk 0:00:03]} 50. a3 {[%clk 0:00:06]}  Kc3 {[%clk 0:00:04]} 51. Kf3 {[%clk 0:00:05]}  Kc2 {[%clk 0:00:03]} 52. Ke4 {[%clk 0:00:01]}  f3+ {[%clk 0:00:03]} 53. Kxf3 {[%clk 0:00:01]}  Rh3+ {[%clk 0:00:04]} 54. Ke2 {[%clk 0:00:02]}  Rxa3 {[%clk 0:00:04]} 55. Ra7 {[%clk 0:00:03]}  Kb3 {[%clk 0:00:04]} 56. Kd1 {[%clk 0:00:04]}  Ra1+ {[%clk 0:00:04]} 57. Kd2 {[%clk 0:00:04]}  a3 {[%clk 0:00:03]} 58. Rb7+ {[%clk 0:00:05]}  Ka2 {[%clk 0:00:04]} 59. Kc2 {[%clk 0:00:06]}  Rh1 {[%clk 0:00:04]} 60. Ra7 {[%clk 0:00:07]}  Rh2+ {[%clk 0:00:04]} 61. Kc1 {[%clk 0:00:07]}  Rh4 {[%clk 0:00:04]} 62. Kc2 {[%clk 0:00:08]}  Rc4+ {[%clk 0:00:04]} 63. Kd3 {[%clk 0:00:08]}  Rb4 {[%clk 0:00:05]} 64. Kc3 {[%clk 0:00:09]}  Rb5 {[%clk 0:00:05]} 65. Kc2 {[%clk 0:00:09]}  Rc5+ {[%clk 0:00:05]} 66. Kd2 {[%clk 0:00:08]}  Rc4 {[%clk 0:00:05]} 67. Kd3 {[%clk 0:00:08]}  Rc6 {[%clk 0:00:05]} 68. Rb7 {[%clk 0:00:08]}  Rd6+ {[%clk 0:00:04]} 69. Kc2 {[%clk 0:00:08]}  Rc6+ {[%clk 0:00:05]} 70. Kd2 {[%clk 0:00:09]}  Rd6+ {[%clk 0:00:05]} 71. Kc2 {[%clk 0:00:07]}  Rc6+ {[%clk 0:00:06]} 72. Kd2 {[%clk 0:00:07]}  Rd6+ {[%clk 0:00:06]} 73. Kc2 {[%clk 0:00:08]} 1/2-1/2


[Site "https://www.chess.com"]

[Event "Titled Tuesday Blitz June 8 2021"]
[White "Demchenko, Anton"]
[Black "Pap, Gyula"]
[WhiteFideId "4160258"]
[BlackFideId "725323"]
[WhiteElo "2593"]
[BlackElo "2562"]
[Result "1-0"]
[Round "10"]
[TimeControl "180+1"]
[Date "2021.06.08"]
[WhiteClock "0:00:32"]
[BlackClock "0:00:02"]

1. e4 {[%clk 0:03:00]}  e6 {[%clk 0:02:54]} 2. d4 {[%clk 0:03:00]}  d5 {[%clk 0:02:55]} 3. Nc3 {[%clk 0:03:00]}  Nf6 {[%clk 0:02:54]} 4. Bg5 {[%clk 0:02:59]}  dxe4 {[%clk 0:02:54]} 5. Nxe4 {[%clk 0:03:00]}  Be7 {[%clk 0:02:55]} 6. Nxf6+ {[%clk 0:02:59]}  Bxf6 {[%clk 0:02:55]} 7. Bxf6 {[%clk 0:02:59]}  Qxf6 {[%clk 0:02:56]} 8. Nf3 {[%clk 0:03:00]}  c5 {[%clk 0:02:54]} 9. Bb5+ {[%clk 0:02:59]}  Bd7 {[%clk 0:02:54]} 10. Qe2 {[%clk 0:02:59]}  cxd4 {[%clk 0:02:47]} 11. O-O-O {[%clk 0:02:56]}  Nc6 {[%clk 0:02:42]} 12. Nxd4 {[%clk 0:02:41]}  O-O {[%clk 0:02:29]} 13. Nxc6 {[%clk 0:02:24]}  Bxc6 {[%clk 0:02:30]} 14. Bxc6 {[%clk 0:02:24]}  bxc6 {[%clk 0:02:30]} 15. Qe3 {[%clk 0:02:14]}  Rab8 {[%clk 0:02:15]} 16. c3 {[%clk 0:02:13]}  Rb5 {[%clk 0:01:35]} 17. Rhe1 {[%clk 0:02:03]}  Rd5 {[%clk 0:01:26]} 18. Rd2 {[%clk 0:01:39]}  h5 {[%clk 0:01:12]} 19. Red1 {[%clk 0:01:33]}  a5 {[%clk 0:01:08]} 20. f4 {[%clk 0:01:28]}  a4 {[%clk 0:01:04]} 21. a3 {[%clk 0:01:26]}  Rb8 {[%clk 0:01:00]} 22. Qe4 {[%clk 0:01:21]}  Rdb5 {[%clk 0:00:30]} 23. Qxa4 {[%clk 0:01:15]}  g6 {[%clk 0:00:15]} 24. Qe4 {[%clk 0:01:09]}  Rb3 {[%clk 0:00:07]} 25. Rc2 {[%clk 0:01:07]}  c5 {[%clk 0:00:04]} 26. g3 {[%clk 0:01:04]}  Qe7 {[%clk 0:00:02]} 27. Qc4 {[%clk 0:00:59]}  Qb7 {[%clk 0:00:02]} 28. Qe2 {[%clk 0:00:50]}  Qc6 {[%clk 0:00:03]} 29. Rcd2 {[%clk 0:00:47]}  Qb6 {[%clk 0:00:03]} 30. Rc2 {[%clk 0:00:42]}  Qc6 {[%clk 0:00:03]} 31. h3 {[%clk 0:00:43]}  Qb6 {[%clk 0:00:03]} 32. g4 {[%clk 0:00:43]}  hxg4 {[%clk 0:00:04]} 33. hxg4 {[%clk 0:00:43]}  Qc7 {[%clk 0:00:04]} 34. Qe5 {[%clk 0:00:39]}  Qb7 {[%clk 0:00:04]} 35. Rcd2 {[%clk 0:00:36]}  Qa8 {[%clk 0:00:02]} 36. f5 {[%clk 0:00:32]}  Rxa3 {[%clk 0:00:01]} 37. bxa3 {[%clk 0:00:31]}  Qxa3+ {[%clk 0:00:02]} 38. Kc2 {[%clk 0:00:32]}  Qa4+ {[%clk 0:00:01]} 39. Kd3 {[%clk 0:00:31]}  Rd8+ {[%clk 0:00:02]} 40. Ke3 {[%clk 0:00:32]} 1-0


[Site "https://www.chess.com"]

[Event "Titled Tuesday Blitz June 8 2021"]
[White "Grandelius, Nils"]
[Black "Samsonkin, Artiom"]
[WhiteFideId "1710400"]
[BlackFideId "13503111"]
[WhiteElo "2651"]
[BlackElo "2513"]
[Result "1-0"]
[Round "10"]
[TimeControl "180+1"]
[Date "2021.06.08"]
[WhiteClock "0:01:05"]
[BlackClock "0:00:01"]

1. d4 {[%clk 0:03:00]}  Nf6 {[%clk 0:02:58]} 2. c4 {[%clk 0:02:59]}  e6 {[%clk 0:02:58]} 3. Nc3 {[%clk 0:02:58]}  Bb4 {[%clk 0:02:59]} 4. g3 {[%clk 0:02:59]}  O-O {[%clk 0:02:57]} 5. Bg2 {[%clk 0:03:00]}  d5 {[%clk 0:02:58]} 6. Nf3 {[%clk 0:03:00]}  dxc4 {[%clk 0:02:55]} 7. O-O {[%clk 0:03:00]}  Nc6 {[%clk 0:02:50]} 8. Qa4 {[%clk 0:03:01]}  Nd5 {[%clk 0:02:25]} 9. Qc2 {[%clk 0:03:00]}  Bxc3 {[%clk 0:02:16]} 10. bxc3 {[%clk 0:02:57]}  b5 {[%clk 0:02:01]} 11. Ng5 {[%clk 0:02:49]}  g6 {[%clk 0:01:51]} 12. e4 {[%clk 0:02:49]}  Nde7 {[%clk 0:01:45]} 13. e5 {[%clk 0:02:47]}  Nd5 {[%clk 0:01:09]} 14. Ne4 {[%clk 0:02:37]}  Bb7 {[%clk 0:00:43]} 15. Bg5 {[%clk 0:02:35]}  Qc8 {[%clk 0:00:44]} 16. Nf6+ {[%clk 0:02:29]}  Nxf6 {[%clk 0:00:44]} 17. Bxf6 {[%clk 0:02:30]}  h6 {[%clk 0:00:33]} 18. h4 {[%clk 0:02:22]}  Nb8 {[%clk 0:00:30]} 19. h5 {[%clk 0:02:08]}  Kh7 {[%clk 0:00:29]} 20. Bh3 {[%clk 0:02:01]}  Nd7 {[%clk 0:00:22]} 21. Bxe6 {[%clk 0:01:52]}  Qe8 {[%clk 0:00:17]} 22. Bxd7 {[%clk 0:01:50]}  Qxd7 {[%clk 0:00:17]} 23. f3 {[%clk 0:01:41]}  Qh3 {[%clk 0:00:15]} 24. Qh2 {[%clk 0:01:41]}  Qxh2+ {[%clk 0:00:14]} 25. Kxh2 {[%clk 0:01:42]}  gxh5 {[%clk 0:00:15]} 26. Kg2 {[%clk 0:01:37]}  Bd5 {[%clk 0:00:14]} 27. Rh1 {[%clk 0:01:37]}  Kg6 {[%clk 0:00:14]} 28. Rh4 {[%clk 0:01:37]}  a5 {[%clk 0:00:14]} 29. Rah1 {[%clk 0:01:36]}  b4 {[%clk 0:00:14]} 30. Rxh5 {[%clk 0:01:36]}  bxc3 {[%clk 0:00:13]} 31. g4 {[%clk 0:01:34]}  Rh8 {[%clk 0:00:08]} 32. Bxh8 {[%clk 0:01:34]}  Rxh8 {[%clk 0:00:08]} 33. Kg3 {[%clk 0:01:27]}  Kg7 {[%clk 0:00:06]} 34. Rc1 {[%clk 0:01:22]}  Rb8 {[%clk 0:00:04]} 35. Rxc3 {[%clk 0:01:22]}  Rb2 {[%clk 0:00:05]} 36. Ra3 {[%clk 0:01:22]}  Rd2 {[%clk 0:00:01]} 37. Rxa5 {[%clk 0:01:19]}  c6 {[%clk 0:00:02]} 38. g5 {[%clk 0:01:15]}  hxg5 {[%clk 0:00:01]} 39. Rxg5+ {[%clk 0:01:16]}  Kf8 {[%clk 0:00:02]} 40. Rg4 {[%clk 0:01:12]}  c3 {[%clk 0:00:02]} 41. Rc5 {[%clk 0:01:12]}  c2 {[%clk 0:00:02]} 42. Rh4 {[%clk 0:01:07]}  Ke7 {[%clk 0:00:02]} 43. Rh2 {[%clk 0:01:07]}  Rd3 {[%clk 0:00:01]} 44. Rf2 {[%clk 0:01:04]}  Rxd4 {[%clk 0:00:01]} 45. Rfxc2 {[%clk 0:01:04]}  Rd3 {[%clk 0:00:01]} 46. R5c3 {[%clk 0:01:04]}  Rxc3 {[%clk 0:00:01]} 47. Rxc3 {[%clk 0:01:05]}  Ke6 {[%clk 0:00:01]} 48. Kf4 {[%clk 0:01:05]} 1-0


[Site "https://www.chess.com"]